bitfinex-derivatives/quotes_ETHF0:USTF0_20251204
["timestamp","ask_amount","ask_price","bid_price","bid_amount"]
[1764862660044,5.57814091,3194.8,3194.4,3.21249248]
[1764862660533,5.57814091,3194.8,3194.4,0.00469248]
[1764862660736,5.57814091,3194.8,3194.4,3.21249248]
[1764862660737,2.37034091,3194.8,3194.4,3.21249248]
[1764862662341,46.6265701,3195.0,3194.4,3.21249248]
[1764862662839,5.8265701,3194.5,3194.4,0.00469248]
[1764862663445,2.6187701,3194.5,3194.4,0.00469248]
[1764862663840,0.60460784,3196.0,3194.4,3.21249248]
[1764862663841,3.2078,3195.6,3194.4,3.21249248]
[1764862664036,3.2078,3195.8,3194.8,3.2078]
[1764862664243,0.60460784,3196.0,3195.3,3.2078]
[1764862664848,0.60460784,3196.0,3195.7,3.2078]
[1764862665241,0.00820784,3196.0,3195.7,3.2078]
[1764862665945,3.2078,3197.1,3195.7,3.2078]
[1764862666146,3.2078,3197.9,3196.9,3.2078]
[1764862666649,3.2078,3198.6,3197.8,3.2078]
[1764862666949,0.0038996,3198.6,3198.2,3.2078]
[1764862667134,0.00469247,3198.5,3198.2,3.2078]
[1764862667337,3.2078,3198.3,3197.9,0.00469248]
[1764862667743,3.2078,3198.3,3197.8,0.00250886]
[1764862667944,3.2078,3197.9,3197.4,3.2078]
[1764862668247,3.7937871,3198.1,3197.8,3.2078]
[1764862668543,3.2078,3197.9,3197.1,3.2078]
[1764862668748,44.0078,3197.9,3197.2,0.00469248]
[1764862668939,3.2078,3198.3,3197.5,3.2078]
[1764862669141,0.00469247,3198.5,3197.9,3.2078]
[1764862669539,0.00469247,3198.5,3197.6,0.8364]
[1764862669540,0.00469247,3198.5,3198.4,3.2078]
[1764862669741,3.2078,3199.3,3198.4,10.0442]
[1764862670047,44.7992,3199.2,3198.4,3.2078]
[1764862670238,3.2078,3198.8,3197.6,4.0442]
[1764862670437,3.2078,3198.8,3197.2,2.73999564]
[1764862670438,3.2078,3198.4,3197.7,3.2078]
[1764862670640,3.7937871,3198.7,3198.1,3.2078]
[1764862670837,3.21651764,3198.7,3198.1,3.21249248]
[1764862671151,0.00871764,3198.7,3198.6,3.2078]
[1764862671646,0.00871764,3198.7,3198.2,3.2078]
[1764862671845,0.00871764,3198.7,3198.6,3.2078]
[1764862672542,0.00871764,3198.7,3198.2,3.2078]
[1764862673548,4.8163527,3201.3,3198.1,0.00469248]
[1764862673549,3.2078,3200.6,3200.4,0.4182]
[1764862673849,3.2078,3203.8,3201.3,3.2078]
[1764862674156,3.2078,3203.8,3200.5,29.03639821]
[1764862674157,0.15591,3206.3,3203.7,3.7937871]
[1764862674349,0.7914,3207.0,3203.8,3.847]
[1764862674350,3.2078,3206.9,3203.8,3.847]
[1764862674552,3.21045177,3206.9,3204.0,0.67072]
[1764862674739,0.06442662,3205.5,3204.0,0.67072]
[1764862675047,0.06442662,3205.5,3205.0,0.00468508]
[1764862675447,0.06442662,3205.5,3205.1,4.02181394]
[1764862675746,0.0764048,3205.3,3205.0,0.00468508]
[1764862675950,15.91036322,3205.5,3205.2,3.2078]
[1764862676251,3.2078,3205.3,3204.1,3.2078]
[1764862676547,3.2078,3204.9,3204.5,3.2078]
[1764862676752,3.2078,3204.9,3203.9,3.2078]
[1764862677050,0.03185928,3204.4,3204.1,0.00468508]
[1764862677252,0.00466042,3205.5,3204.3,3.2078]
[1764862677447,0.74095712,3204.9,3204.3,3.2078]
[1764862677953,41.54095712,3204.9,3204.3,3.2078]
[1764862678347,41.54413155,3204.9,3204.3,3.2078]
[1764862678552,0.74095712,3204.6,3204.3,3.2078]
[1764862679154,5.50485699,3204.4,3204.3,3.2078]
[1764862679453,0.00317443,3204.9,3204.3,3.2078]
[1764862679659,0.74095712,3204.4,3204.1,0.00468508]
[1764862679859,3.2078,3206.3,3204.4,4.14065876]
[1764862680156,3.2078,3206.3,3204.3,3.2078]
[1764862680157,5.50485699,3205.4,3204.9,3.2078]
[1764862680360,0.7914,3205.0,3204.9,2.73005265]
[1764862680559,0.7914,3205.0,3204.3,3.2078]
[1764862680952,40.8,3204.9,3204.3,3.2078]
[1764862681660,0.79511806,3205.0,3204.7,3.2078]
[1764862681661,0.00371806,3205.0,3204.7,3.2078]
[1764862681854,0.00371806,3205.0,3204.1,0.00468508]
[1764862681855,5.50485699,3204.9,3204.2,3.2078]
[1764862682056,3.2078,3204.5,3204.1,0.00468508]
[1764862682462,0.7914,3204.0,3203.2,3.2078]
[1764862682668,3.2078,3203.8,3203.2,3.2078]
[1764862682963,3.2078,3203.8,3201.1,0.15616]
[1764862682964,3.2078,3203.3,3202.1,3.2078]
[1764862683164,3.2078,3202.9,3202.1,3.2078]
[1764862683454,0.00468508,3202.8,3202.2,3.21248508]
[1764862683659,0.00468508,3202.8,3202.7,3.2078]
[1764862683852,3.2078,3203.9,3202.7,3.2078]
[1764862684051,5.50485699,3203.6,3202.7,3.2078]
[1764862684556,3.2078,3203.5,3202.7,3.2078]
[1764862684754,5.50485699,3203.6,3202.7,3.2078]
[1764862684755,0.00466042,3203.4,3202.7,3.2078]
[1764862685759,0.00466042,3203.4,3202.3,3.2078]
[1764862686057,2.3572,3203.0,3202.3,3.2078]
[1764862686563,3.2078,3202.7,3202.2,0.00468508]
[1764862686761,3.2116343,3202.7,3202.2,0.00468508]
[1764862686954,40.8,3202.6,3202.5,3.2078]
[1764862687155,0.0038343,3202.7,3202.5,3.2078]
[1764862687355,5.50485699,3202.6,3202.5,3.2078]
[1764862687857,5.50485699,3202.6,3202.2,0.00468508]
[1764862688258,5.50485699,3202.3,3202.2,0.00468508]
[1764862689152,2.3572,3202.0,3201.1,0.00310009]
[1764862689456,5.565,3202.0,3201.1,0.00310009]
[1764862689659,3.7937871,3201.5,3201.1,0.00310009]
[1764862689863,40.8,3201.9,3201.2,3.2078]
[1764862690158,3.36393,3201.8,3201.2,0.00468508]
[1764862690360,3.2078,3201.4,3201.2,0.00468508]
[1764862690560,0.15616,3201.2,3200.3,3.2078]
[1764862690761,7.1577671,3200.7,3199.7,3.2078]
[1764862691058,8.71265699,3201.2,3200.1,3.2078]
[1764862691262,40.8,3200.6,3200.1,3.2078]
[1764862691455,40.8,3200.6,3198.3,3.2078]
[1764862691456,2.3572,3200.0,3198.3,3.2078]
[1764862691657,3.2078,3199.8,3198.3,3.21090894]
[1764862691962,0.00379218,3200.0,3199.1,3.2078]
[1764862692160,40.8,3199.9,3199.6,3.2078]
[1764862692465,5.50485699,3199.7,3199.6,3.2078]
[1764862692660,5.50485699,3199.7,3198.7,0.00468508]
[1764862692661,5.50485699,3199.7,3199.2,3.2078]
[1764862692861,5.50485699,3199.6,3199.2,3.2078]
[1764862693064,46.30485699,3199.6,3198.8,3.2078]
[1764862693364,46.30485699,3199.6,3198.7,0.00468508]
[1764862693365,3.2078,3199.4,3198.7,0.00468508]
[1764862693563,3.2078,3198.9,3198.7,0.00468508]
[1764862694663,46.30485699,3199.6,3198.7,0.00468508]
[1764862694860,46.30485699,3199.6,3199.0,3.2078]
[1764862695964,46.30485699,3199.6,3198.7,0.00468508]
[1764862696365,3.2078,3199.3,3198.7,0.00468508]
[1764862696860,40.8,3199.6,3199.0,3.2078]
[1764862697168,3.2078,3199.7,3199.0,3.2078]
[1764862697358,3.2078,3199.7,3198.7,0.00468508]
[1764862697359,5.50485699,3199.6,3199.5,3.2078]
[1764862697558,0.00379218,3200.0,3199.5,3.2078]
[1764862697559,46.30485699,3199.9,3199.5,3.2078]
[1764862697761,5.50485699,3199.6,3199.5,3.2078]
[1764862699065,5.50485699,3199.6,3199.1,3.2078]
[1764862699264,0.00379218,3200.0,3199.1,3.2078]
[1764862699464,3.2078,3200.2,3199.5,5.4053]
[1764862699660,1.64173276,3203.6,3200.6,3.2078]
[1764862699865,3.2078,3204.6,3200.4,1.1]
[1764862699866,3.2078,3204.6,3202.9,3.36387]
[1764862700064,0.15599,3204.7,3203.8,3.2078]
[1764862700461,3.36379,3204.6,3203.8,3.2078]
[1764862700667,2.3572,3204.0,3203.8,3.21018544]
[1764862701265,40.8,3204.5,3203.8,3.21018544]
[1764862701456,0.00468508,3204.6,3204.2,3.2078]
[1764862703866,5.565,3205.8,3204.2,3.2078]
[1764862704167,5.565,3205.8,3204.8,3.2078]
[1764862704168,2.3572,3205.0,3204.8,3.2078]
[1764862704867,3.2078,3204.9,3204.2,3.2078]
[1764862705073,0.00267287,3205.0,3204.6,3.2078]
[1764862705871,0.00468508,3205.2,3204.6,3.2078]
[1764862706172,0.00468508,3205.2,3204.3,3.2078]
[1764862706173,3.21248508,3205.2,3204.3,3.2078]
[1764862706671,0.16064508,3205.2,3204.3,3.2078]
[1764862706867,3.2078,3204.9,3204.3,3.2078]
[1764862707870,0.00688683,3205.2,3204.3,3.2078]
[1764862708269,0.00688683,3205.2,3204.7,3.2078]
[1764862708467,40.80688683,3205.2,3204.7,3.2078]
[1764862708864,40.80688683,3205.2,3204.3,3.2078]
[1764862709472,3.2078,3205.8,3205.1,3.2078]
[1764862709975,3.2078,3206.4,3205.5,3.2078]
[1764862710373,0.00466042,3206.3,3205.6,0.00468508]
[1764862710978,0.15594,3205.7,3204.6,3.2078]
[1764862711280,5.565,3205.8,3205.0,3.2078]
[1764862711482,3.2078,3205.8,3205.0,3.2078]
[1764862712094,3.2078,3205.8,3205.1,0.00468508]
[1764862712479,5.565,3205.8,3205.1,0.00468508]
[1764862712679,3.2078,3205.5,3205.1,0.00468508]
[1764862713388,3.2078,3205.5,3204.6,3.2078]
[1764862713389,3.26211462,3205.5,3204.2,3.2078]
[1764862713597,3.2078,3204.9,3204.2,3.2078]
[1764862714094,2.3572,3205.8,3204.2,3.2078]
[1764862714095,3.2078,3205.4,3204.2,3.2078]
[1764862714295,3.2078,3205.0,3204.5,0.00468508]
[1764862714496,3.2078,3205.4,3204.5,0.00468508]
[1764862714694,3.36375,3205.4,3204.5,0.00468508]
[1764862714993,3.36375,3205.4,3204.7,3.2078]
[1764862714994,40.8,3205.3,3204.7,3.2078]
[1764862715495,40.8,3205.3,3204.5,0.00468508]
[1764862716098,40.8,3205.3,3204.8,3.2078]
[1764862716398,0.15595,3205.4,3204.8,3.2078]
[1764862716697,2.3572,3205.8,3204.8,3.2078]
[1764862716889,3.2078,3205.5,3204.8,3.2078]
[1764862719093,3.2078,3205.1,3204.5,0.00468508]
[1764862719296,3.36375,3205.5,3204.5,0.00468508]
[1764862720005,0.15595,3205.5,3205.0,3.2078]
[1764862720202,40.8,3205.7,3205.0,3.2078]
[1764862721207,0.15596,3205.3,3204.5,0.00468508]
[1764862721391,3.2078,3205.4,3204.6,3.2078]
[1764862721701,40.8,3205.3,3204.6,3.2078]
[1764862722097,3.148,3204.2,3202.2,3.2078]
[1764862722300,3.2078,3202.8,3202.0,4.8566]
[1764862722494,0.15604,3203.8,3202.0,4.8566]
[1764862722495,3.2078,3202.7,3202.0,1.6488]
[1764862722695,3.2078,3202.6,3202.0,1.6488]
[1764862723001,3.2078,3203.0,3202.0,4.8566]
[1764862723197,0.00468508,3202.8,3202.2,0.00468508]
[1764862724494,0.00468508,3202.8,3202.3,3.2078]
[1764862724797,0.00362495,3203.0,3202.7,3.2078]
[1764862726101,3.2078,3204.3,3203.1,2.4379]
[1764862726399,3.2078,3204.3,3203.4,3.2078]
[1764862726603,3.2078,3203.6,3202.9,3.2078]
[1764862726990,3.21549041,3203.6,3202.9,3.2078]
[1764862727196,0.00769041,3203.6,3202.9,3.2078]
[1764862727703,0.00769041,3203.6,3203.1,3.2078]
[1764862727899,3.2078,3203.3,3202.7,3.2078]
[1764862728303,0.00769041,3203.6,3202.9,3.2078]
[1764862730103,3.2078,3203.3,3202.9,3.2078]
[1764862730297,2.5519,3203.2,3202.4,3.2078]
[1764862730607,2.5519,3203.2,3202.2,0.00468508]
[1764862730608,3.2078,3202.9,3202.2,0.00468508]
[1764862730903,3.2078,3202.9,3202.2,3.21248508]
[1764862731499,3.2078,3202.9,3202.2,0.00468508]
[1764862731700,2.5519,3202.4,3202.0,0.00261874]
[1764862731906,3.2078,3202.1,3202.0,0.00261874]
[1764862732307,3.2078,3202.1,3202.0,3.21041874]
[1764862732709,3.2078,3202.1,3202.0,0.00261874]
[1764862732910,3.21818512,3202.1,3202.0,0.00261874]
[1764862733709,3.21818512,3202.1,3202.0,3.2078]
[1764862734812,3.21818512,3202.1,3202.0,3.21162194]
[1764862735104,0.01038512,3202.1,3202.0,3.21162194]
[1764862735506,0.01038512,3202.1,3202.0,6.41942194]
[1764862736413,3.2078,3203.1,3202.0,12.41942194]
[1764862736706,3.2078,3202.7,3202.0,6.41942194]
[1764862737815,3.2078,3203.1,3202.0,6.41942194]
[1764862739702,3.2078,3203.1,3202.4,3.2078]
[1764862740219,3.2078,3203.1,3202.4,5.6457]
[1764862740417,3.2078,3203.1,3202.4,5.64449966]
[1764862741212,3.2078,3203.1,3202.4,3.20659966]
[1764862741719,44.16383,3203.9,3203.0,3.2078]
[1764862741916,3.2078,3203.9,3203.0,3.2078]
[1764862742106,3.2078,3204.3,3203.5,3.2078]
[1764862742306,3.2078,3204.7,3204.0,2.4379]
[1764862743008,3.21025599,3204.7,3204.0,2.44258508]
[1764862743211,0.00714107,3204.7,3204.0,2.44258508]
[1764862743606,0.00714107,3204.7,3204.3,3.2078]
[1764862743805,0.00714107,3204.7,3204.3,3.21105135]
[1764862744010,0.00714107,3204.7,3204.4,3.10115472]
[1764862744212,3.2078,3205.6,3204.5,0.156]
[1764862744510,3.2078,3206.0,3205.0,3.2078]
[1764862744903,5.7055,3205.6,3204.6,3.2078]
[1764862745209,3.2078,3205.2,3204.6,3.2078]
[1764862745410,3.2078,3205.2,3204.7,3.2078]
[1764862745714,3.2078,3204.8,3204.3,0.00325135]
[1764862745906,3.2078,3204.5,3204.4,3.2078]
[1764862746114,3.2078,3204.5,3204.3,0.00325135]
[1764862746815,0.15596,3205.2,3204.4,3.2078]
[1764862747014,5.7597,3204.8,3204.3,0.00325135]
[1764862747206,3.2078,3204.4,3204.3,0.00325135]
[1764862747519,3.21248508,3205.4,3204.7,3.2078]
[1764862747720,3.2078,3205.0,3204.7,3.2078]
[1764862748020,3.2078,3205.0,3204.3,3.21105135]
[1764862748211,3.2078,3205.0,3204.4,3.2078]
[1764862748519,3.2078,3205.3,3204.3,3.21105135]
[1764862748723,3.2078,3204.4,3204.3,0.00325135]
[1764862748912,6.30895472,3204.4,3204.3,0.00325135]
[1764862749315,6.30895472,3204.4,3204.3,3.21105135]
[1764862750823,6.30895472,3204.4,3204.3,0.00325135]
[1764862751022,0.15602,3204.1,3202.9,3.2078]
[1764862751319,6.30895472,3203.3,3202.5,3.2078]
[1764862751717,6.30895472,3203.3,3202.9,3.2078]
[1764862751914,6.31195812,3203.3,3202.9,3.21044871]
[1764862752213,6.31195812,3203.3,3202.1,3.2078]
[1764862752214,2.127,3203.2,3202.1,3.2078]
[1764862752417,3.10415812,3203.3,3202.6,3.2078]
[1764862752817,0.0030034,3203.3,3202.6,3.2078]
[1764862753320,0.0030034,3203.3,3203.0,3.2078]
[1764862753520,0.0030034,3203.3,3203.2,2.5385]
[1764862753822,3.2078,3204.3,3203.2,2.5385]
[1764862754028,3.2078,3204.3,3203.6,3.2078]
[1764862754423,3.2078,3204.7,3204.0,3.2078]
[1764862754825,3.21495424,3204.7,3204.0,3.2078]
[1764862755027,0.00715424,3204.7,3204.0,5.7463]
[1764862755232,0.00715424,3204.7,3204.0,2.5385]
[1764862755527,3.2078,3204.6,3203.9,3.2078]
[1764862755921,0.00715424,3204.7,3203.9,3.2078]
[1764862756421,0.00715424,3204.7,3204.3,3.2078]
[1764862757432,3.2078,3205.8,3204.3,3.2078]
[1764862757625,3.2078,3205.8,3204.7,3.2078]
[1764862758127,3.2078,3206.3,3205.6,3.2078]
[1764862758326,3.21634221,3206.3,3205.6,3.21509347]
[1764862758533,3.21634221,3206.3,3205.6,5.75359347]
[1764862759036,3.21634221,3206.3,3205.6,2.54579347]
[1764862759219,0.00854221,3206.3,3205.7,3.2078]
[1764862760326,0.00854221,3206.3,3205.6,2.54579347]
[1764862760327,0.00854221,3206.3,3206.2,3.2078]
[1764862760522,3.2078,3207.1,3206.2,3.2078]
[1764862761427,3.2078,3207.1,3205.6,2.70173347]
[1764862761428,0.00463581,3207.0,3206.6,3.2078]
[1764862761731,0.15581,3208.4,3206.6,3.2078]
[1764862761732,3.2078,3208.7,3208.0,2.1186]
[1764862761919,3.44853132,3209.5,3208.4,3.2078]
[1764862762334,0.01016085,3209.0,3208.4,3.2078]
[1764862762632,0.01287031,3209.0,3208.4,3.21597746]
[1764862762829,3.2078,3208.6,3208.4,0.00817746]
[1764862763026,3.2078,3208.6,3207.5,3.2078]
[1764862763223,0.01016085,3208.1,3207.9,3.2078]
[1764862763528,0.01016085,3208.1,3207.2,5.74287235]
[1764862763529,0.01016085,3208.1,3207.5,3.2078]
[1764862763736,0.00270946,3209.0,3208.0,1.0294]
[1764862763927,0.00270946,3209.0,3208.4,3.2078]
[1764862764126,0.00467771,3208.8,3208.4,3.2078]
[1764862764326,0.00270946,3209.0,3208.9,3.2078]
[1764862764731,0.00270946,3209.0,3208.5,3.2078]
[1764862765127,0.00270946,3209.0,3208.8,2.5385]
[1764862765334,3.2078,3210.2,3208.9,3.2078]
[1764862765533,3.2078,3210.2,3209.7,3.2078]
[1764862765739,0.24285765,3211.2,3210.1,3.2078]
[1764862766031,3.2078,3212.4,3210.8,3.2078]
[1764862766223,2.6421,3212.1,3210.8,0.0022618]
[1764862766629,3.2078,3211.7,3210.8,0.0022618]
[1764862766933,2.6421,3212.1,3211.0,3.2078]
[1764862767138,6.30895472,3211.9,3211.0,3.2078]
[1764862767429,2.6421,3212.1,3211.0,3.2078]
[1764862767826,0.00384345,3212.4,3210.8,0.0022618]
[1764862767827,0.00384345,3212.4,3211.8,3.2078]
[1764862768329,3.2078,3215.6,3212.3,6.30895472]
[1764862768528,3.2078,3215.2,3214.4,3.2078]
[1764862768725,0.05415714,3215.3,3214.4,3.2078]
[1764862768928,1.867,3216.5,3214.8,3.2078]
[1764862768929,3.36322,3216.5,3214.8,3.2078]
[1764862769229,3.2078,3216.4,3215.3,0.00467027]
[1764862769437,2.6421,3215.0,3213.8,3.2078]
[1764862769742,3.2078,3215.8,3214.5,3.19266966]
[1764862769921,2.6421,3216.0,3214.9,3.2078]
[1764862770126,3.2078,3215.7,3214.9,3.2078]
[1764862770527,0.00464552,3215.6,3215.0,0.00467027]
[1764862770724,0.01513034,3215.3,3215.0,2.54317027]
[1764862771027,0.00464552,3215.6,3215.2,3.19212719]
[1764862771330,2.3679,3219.0,3215.0,0.00467027]
[1764862771331,3.10115472,3218.2,3216.8,3.2078]
[1764862771524,3.2078,3217.6,3216.8,3.2078]
[1764862771725,3.2078,3217.8,3216.8,3.2078]
[1764862771923,5.47365472,3218.0,3217.7,3.2078]
[1764862772128,3.2078,3217.8,3217.7,3.08101966]
[1764862772324,3.2078,3217.8,3217.7,2.98421361]
[1764862772528,0.21892359,3217.6,3216.5,3.2078]
[1764862772721,9.2078,3217.8,3216.5,3.2078]
[1764862772722,0.38580752,3217.1,3216.5,3.2078]
[1764862772931,0.15891154,3218.0,3216.9,2.82105425]
[1764862772932,0.21892359,3217.2,3216.9,2.82105425]
[1764862773129,0.00357154,3218.0,3216.9,2.82105425]
[1764862773336,3.2078,3218.7,3217.9,3.2078]
[1764862773639,6.30895472,3219.1,3218.3,3.2078]
[1764862773838,0.00463787,3218.6,3218.3,3.2078]
[1764862774132,2.88139978,3218.5,3218.0,0.0046628]
[1764862774335,2.88494001,3218.5,3218.0,0.00848275]
[1764862774541,2.88494001,3218.5,3218.3,3.2078]
[1764862774833,2.88494001,3218.5,3218.4,3.95044469]
[1764862775028,2.88494001,3218.5,3218.3,3.2078]
[1764862775241,3.10032337,3218.4,3218.3,3.2078]
[1764862775428,3.2078,3219.6,3218.4,6.0]
[1764862775626,3.21570405,3220.6,3219.3,3.2078]
[1764862775832,0.00790405,3220.6,3219.9,3.2078]
[1764862776030,40.8,3220.5,3219.9,3.2078]
[1764862776228,0.21892359,3220.3,3218.7,4.07244765]
[1764862776433,0.0028169,3220.3,3219.9,3.2078]
[1764862776632,0.21892359,3220.2,3219.9,3.2078]
[1764862776839,0.21892359,3220.1,3220.0,4.07244765]
[1764862777029,3.10115472,3220.2,3219.7,3.2078]
[1764862777337,3.10115472,3220.2,3219.2,0.0046628]
[1764862777338,3.10115472,3220.2,3219.3,3.2078]
[1764862777635,3.10115472,3219.5,3219.2,0.0046628]
[1764862777938,3.2078,3219.8,3219.2,0.0046628]
[1764862778133,3.10115472,3219.5,3219.2,0.0046628]
[1764862778342,3.10115472,3219.3,3219.2,0.0046628]
[1764862778530,3.10115472,3219.7,3219.2,0.0046628]
[1764862778729,3.10115472,3219.6,3219.2,0.0046628]
[1764862778931,3.2078,3220.3,3219.5,3.2078]
[1764862779139,6.30895472,3220.3,3219.5,3.2078]
[1764862779331,0.01350992,3219.9,3219.5,3.2078]
[1764862779533,3.10115472,3219.8,3219.5,3.2078]
[1764862779931,3.10115472,3219.8,3219.2,0.0046628]
[1764862780134,0.01350992,3219.9,3219.6,3.2078]
[1764862780334,3.1214196,3219.8,3219.6,3.2078]
[1764862780739,6.02701984,3219.7,3219.6,3.2078]
[1764862781042,0.02701984,3219.7,3219.6,3.2078]
[1764862781238,0.0337748,3219.7,3219.6,3.2078]
[1764862781439,0.0337748,3219.7,3219.2,0.0046628]
[1764862781440,3.13492952,3219.7,3219.2,0.0046628]
[1764862781642,0.00372642,3220.2,3219.5,3.16727024]
[1764862781846,0.00372642,3220.2,3220.1,3.2078]
[1764862782556,3.2078,3221.3,3220.1,3.2078]
[1764862782557,3.21664135,3221.9,3220.2,6.0]
[1764862782760,0.00884135,3221.9,3221.6,3.2078]
[1764862782952,40.8,3221.8,3221.2,3.2078]
[1764862783154,3.2078,3221.7,3221.4,0.0046628]
[1764862783359,3.10115472,3221.5,3220.7,3.2078]
[1764862783563,3.10115472,3221.0,3220.7,0.00385351]
[1764862783862,3.10115472,3221.0,3218.7,4.0670153]
[1764862783863,6.50415472,3220.8,3220.5,3.2078]
[1764862784062,3.2078,3220.7,3220.1,3.2078]
[1764862784356,3.10581752,3220.7,3220.1,3.2124628]
[1764862784561,0.0046628,3220.7,3220.5,3.2078]
[1764862784752,0.0046628,3220.7,3220.5,3.2109139]
[1764862785156,0.00884135,3221.9,3221.0,3.2078]
[1764862785356,0.00884135,3221.9,3221.8,3.2078]
[1764862785560,40.8,3222.9,3221.8,3.2078]
[1764862785758,3.2078,3224.5,3222.5,3.2078]
[1764862785962,3.2078,3225.4,3223.9,3.2078]
[1764862786264,3.74007454,3224.8,3224.6,3.2078]
[1764862786462,0.00763757,3224.5,3223.2,0.00077199]
[1764862786661,0.24383689,3224.9,3223.2,3.28937199]
[1764862786858,3.74007454,3224.2,3223.6,3.2078]
[1764862787057,3.2078,3223.5,3223.2,0.00077199]
[1764862787257,0.05399849,3224.5,3223.2,0.00077199]
[1764862787258,3.36274,3226.4,3224.4,3.2886]
[1764862787464,3.74007454,3225.2,3224.9,3.2078]
[1764862787664,0.00385697,3225.7,3224.4,0.0032529]
[1764862787665,3.2078,3225.0,3224.4,0.0032529]
[1764862787968,0.15499,3225.4,3224.4,0.0032529]
[1764862788268,3.403,3224.4,3223.3,3.2078]
[1764862788457,3.74007454,3223.6,3222.7,3.2078]
[1764862788656,3.74007454,3223.6,3220.7,0.15521]
[1764862788657,3.2078,3222.9,3222.8,0.00465499]
[1764862789464,9.21171616,3222.9,3222.8,0.00787792]
[1764862789660,0.01416558,3222.9,3222.8,0.00787792]
[1764862789971,0.01416558,3222.9,3222.8,6.00787792]
[1764862790152,3.2078,3223.8,3222.8,4.09855132]
[1764862790361,3.2078,3223.8,3223.2,3.2078]
[1764862790558,3.74007454,3223.7,3222.7,3.2078]
[1764862790759,6.94787454,3224.3,3222.7,3.2078]
[1764862790961,3.2078,3224.3,3223.1,3.2078]
[1764862791368,3.2078,3223.8,3222.7,3.2078]
[1764862791558,0.00465499,3223.6,3223.2,3.2078]
[1764862791869,0.0344048,3223.4,3223.2,3.2078]
[1764862792172,0.21521825,3223.3,3223.2,3.2078]
[1764862792468,0.21521825,3223.3,3222.9,0.00465499]
[1764862792861,0.0344048,3223.1,3222.9,0.00465499]
[1764862793169,0.21521825,3223.0,3222.8,3.2078]
[1764862793463,0.21521825,3223.0,3220.8,3.2886]
[1764862793464,3.74007454,3222.5,3221.4,3.2078]
[1764862793674,3.2078,3222.1,3221.4,3.2078]
[1764862793965,3.2078,3221.5,3220.8,3.2078]
[1764862794272,3.2078,3221.1,3220.8,0.00839602]
[1764862794759,0.21521825,3221.2,3220.8,0.00839602]
[1764862795063,3.2422048,3221.0,3220.8,0.00839602]
[1764862795260,41.01521825,3220.9,3220.8,0.00839602]
[1764862795468,0.00700118,3221.5,3220.8,12.50479602]
[1764862795763,0.00700118,3221.5,3220.8,6.50479602]
[1764862796065,40.8,3221.4,3220.8,3.21619602]
[1764862796261,44.0078,3221.4,3220.8,3.21619602]
[1764862796655,44.0078,3221.4,3220.8,0.00839602]
[1764862796864,40.8,3221.4,3220.8,0.00839602]
[1764862797064,40.8,3221.4,3221.0,3.2078]
[1764862797265,0.00700118,3221.5,3221.0,3.2078]
[1764862797867,40.8,3221.4,3221.0,3.2078]
[1764862798056,3.2078,3221.1,3220.8,0.00839602]
[1764862798257,0.01090025,3221.0,3220.8,0.00839602]
[1764862798672,40.8,3220.9,3220.8,0.00839602]
[1764862799066,46.8,3220.9,3220.8,0.00839602]
[1764862799364,40.81090025,3220.9,3220.2,3.2078]
[1764862799566,0.01307698,3220.6,3219.8,3.2078]
[1764862799769,3.2078,3220.7,3219.8,3.2078]
[1764862799972,0.01525703,3220.2,3219.8,3.2078]
[1764862800268,44.54007454,3220.9,3219.8,3.21038106]
[1764862800269,3.2078,3220.5,3219.8,3.21038106]
[1764862800465,0.01743708,3220.0,3219.8,3.21038106]
[1764862800774,6.94787454,3220.0,3219.8,0.00258106]
[1764862801064,0.01961713,3219.9,3219.0,3.2078]
[1764862801273,0.02179386,3219.5,3219.0,3.2078]
[1764862801673,3.2078,3219.2,3218.1,3.2078]
[1764862801863,0.02397059,3218.7,3217.6,3.2078]
[1764862802069,0.02614732,3218.2,3217.8,0.00465499]
[1764862802259,0.02832405,3218.0,3217.8,0.00465499]
[1764862802464,6.97837532,3217.9,3215.4,0.76253255]
[1764862802770,6.97837532,3217.9,3215.9,3.2078]
[1764862802771,3.2078,3217.0,3215.9,3.2078]
[1764862802967,0.03267751,3216.5,3216.4,3.2078]
[1764862803362,0.03267751,3216.5,3216.4,0.00228459]
[1764862803562,6.03267751,3216.5,3216.1,1e-08]
[1764862803768,6.94787454,3216.2,3214.7,3.2078]
[1764862804069,6.94787454,3216.2,3214.3,3.2078]
[1764862804070,3.2078,3215.4,3214.3,3.2078]
[1764862804268,3.74007454,3214.4,3213.5,3.2078]
[1764862804471,6.94787454,3213.6,3212.7,0.24828501]
[1764862804672,3.2078,3213.2,3212.7,0.25129529]
[1764862804877,0.04259246,3213.0,3212.7,0.00301028]
[1764862805076,0.04259246,3213.0,3212.7,3.21081028]
[1764862805874,0.04259246,3212.9,3212.2,3.2078]
[1764862806264,0.04259246,3212.9,3210.3,5.178]
[1764862806265,3.74007454,3212.3,3211.1,3.2078]
[1764862806464,0.00466983,3212.0,3211.5,3.2078]
[1764862806670,3.74007454,3211.8,3210.6,3.2078]
[1764862806976,0.04259246,3211.2,3210.8,3.2078]
[1764862807476,0.04259246,3211.2,3210.6,0.00310163]
[1764862807770,40.8,3211.1,3211.0,3.2078]
[1764862807973,0.04259246,3211.1,3211.0,3.2078]
[1764862808273,6.04259246,3211.1,3210.6,0.00310163]
[1764862808475,44.05039246,3211.1,3210.6,0.00310163]
[1764862808783,0.04259246,3211.1,3210.6,3.21090163]
[1764862808970,0.0031392,3211.8,3210.6,3.21090163]
[1764862808971,0.04259246,3210.9,3210.6,3.21090163]
[1764862809371,0.04259246,3210.9,3210.6,0.00310163]
[1764862809564,3.2078,3210.8,3210.6,0.00310163]
[1764862810069,0.04259246,3210.7,3210.6,0.00310163]
[1764862810376,0.04259246,3210.7,3208.8,4.0924]
[1764862810377,0.04259246,3210.7,3209.3,3.2078]
[1764862810572,0.04259246,3210.7,3208.8,4.0924]
[1764862810573,0.00466983,3210.3,3208.8,4.0924]
[1764862810774,0.00466983,3210.3,3210.2,3.2078]
[1764862810972,0.04726229,3210.3,3210.2,3.2078]
[1764862811174,0.04726229,3210.3,3209.8,3.2078]
[1764862811477,0.04726229,3210.3,3210.2,0.00345025]